Cogmind - Beta 16.1 @@@ ROGUE MODE // 2026.03.24 @ 12:56:23 Player: Thqwib-Linux Result: Self-destructed Performance ------------- Evolutions (8) 4000 Regions Visited (12) 2400 Robots Destroyed (119) 595 Value Destroyed (4735) 4735 Prototype IDs (32) 640 Alien Tech Used (0) 0 Bonus (1168) 1168 TOTAL SCORE: 13538 Bonus ------- High Alert Combat Kills 36 Follower Combat Kills 332 Entered DSFs 500 Aligned with FarCom 300 Cogmind --------- Core Integrity 63/1450 Matter 289/300 Energy 100/100 System Corruption 12% Temperature Cool (0) Movement Core (50) Location -2/Research Parts ------- > --- POWER (1) -------- (None) > --- PROPULSION (6) --- (None) > --- UTILITY (12) ----- Advanced Visual Processing Unit Advanced Terrain Scan Processor Advanced Salvage Targeting Computer Advanced Salvage Targeting Computer Core Analyzer Hacking Suite Advanced Hacking Suite > --- WEAPON (4) ------- (None) > --- INVENTORY (5) ---- Quantum Reactor Centrium Leg Improved Cooling System Layered Light Armor Plating Hypervelocity Railgun Peak State ------------ > --- POWER ------------ Light Particle Reactor > --- PROPULSION ------- Field Propulsion Array Q-thruster Q-thruster Q-thruster Q-thruster > --- UTILITY ---------- High-capacity Storage Unit Advanced Gravity Neutralizer Machine Analyzer Advanced Terrain Scan Processor Advanced Salvage Targeting Computer Improved Targeting Computer Recoil Stabilizer Improved Weapon Cycler Phase Shifter High-powered Tractor Beam > --- WEAPON ----------- Quantum Rifle Railgun Railgun Enhanced Force Lance > --- INVENTORY -------- Graviton Reactor Graviton Reactor Graviton Reactor Biometal Leg Improved Thunder Leg Improved Cooling System Improved Signal Interpreter Advanced Terrain Scan Processor Advanced Target Analyzer Improved Kinecellerator Layered Light Armor Plating Hardcell Cannon Rocket Launcher [Rating: 133] Favorites ----------- Power Angular Momentum Engine Engine Angular Momentum Engine Power Core Light Nuclear Core Reactor Graviton Reactor Propulsion Titanium Leg Leg Titanium Leg Wheel Wheel Flight Unit Q-thruster Utility Core Analyzer Device Phase Shifter Storage Large Storage Unit Processor Core Analyzer Hackware System Shield Protection Improved Medium Armor Plating Weapon Assault Rifle Energy Gun Quantum Rifle Ballistic Gun Assault Rifle Ballistic Cannon Hardcell Cannon Launcher Grenade Launcher Special Weapon Field Lobotomy Kit Piercing Weapon Enhanced Force Lance Build | -11 -10 -10 -10 -9 -8 -7 -6 -6 -5 -4 -3 -2 ------- Run | Yrd Mat Min Exi Min Mat Fac Fac DSF Fac Fac Res Res Slots Evolved 16 | . . . . . 4 2 2 . 2 2 2 2 Power . | . . . . . . . . . . . . . Propulsion 4 | . . . . . 2 . 1 . 1 . . . Utility 10 | . . . . . 1 1 1 . 1 2 2 2 Weapon 2 | . . . . . 1 1 . . . . . . Parts Attached 136 | . 8 . . . 11 11 2 3 22 34 33 12 Power 14 | . 2 . . . . 1 . 1 1 4 4 1 Engine 5 | . 1 . . . . 1 . 1 1 1 . . Core 3 | . 1 . . . . . . . . 2 . . Reactor 6 | . . . . . . . . . . 1 4 1 Propulsion 42 | . 2 . . . 6 4 1 . 9 9 8 3 Treads . | . . . . . . . . . . . . . Leg 32 | . . . . . 6 4 1 . 9 9 2 1 Wheel 3 | . 2 . . . . . . . . . 1 . Hover . | . . . . . . . . . . . . . Flight 7 | . . . . . . . . . . . 5 2 Utility 49 | . 1 . . . 2 4 1 1 7 12 14 7 Device 24 | . . . . . 1 . . . 5 7 9 2 Storage 3 | . 1 . . . . 1 . . 1 . . . Processor 10 | . . . . . . 2 . 1 1 2 1 3 Hackware 5 | . . . . . 1 . . . . 2 . 2 Protection 7 | . . . . . . 1 1 . . 1 4 . Artifact . | . . . . . . . . . . . . . Weapon 31 | . 3 . . . 3 2 . 1 5 9 7 1 Energy Gun 3 | . . . . . . . . . . . 3 . Energy Cannon . | . . . . . . . . . . . . . Ballistic Gun 23 | . 2 . . . 3 2 . 1 4 8 2 1 Ballistic Cannon 1 | . . . . . . . . . . . 1 . Launcher 2 | . 1 . . . . . . . . 1 . . Special Weapon 1 | . . . . . . . . . 1 . . . Impact Weapon . | . . . . . . . . . . . . . Slashing Weapon . | . . . . . . . . . . . . . Piercing Weapon 1 | . . . . . . . . . . . 1 . Special Melee Weapon . | . . . . . . . . . . . . . Unidentified Prototypes 4 | . . . . . 1 . . . 1 . 2 . Corrupted Parts 1 | . . . . . . . . . . . 1 . System Corruption 1 | . . . . . . . . . . . 1 . Parts Lost 67 | . . . . . . 1 . . 11 26 16 13 Power 6 | . . . . . . . . . 1 3 1 1 Propulsion 23 | . . . . . . . . . 6 8 4 5 Utility 23 | . . . . . . . . . 3 7 7 6 Weapon 15 | . . . . . . 1 . . 1 8 4 1 Highest Loss Streak 10 | . . . . . . 1 . . 4 10 5 9 To Critical Strikes 1 | . . . . . . . . . 1 . . . Average Backups 13 | 6 7 9 11 12 11 14 13 14 15 16 12 4 Power 2 | 1 . . . 1 2 3 4 4 2 1 2 . Propulsion 2 | 4 3 4 5 5 2 3 2 3 2 . 1 1 Utility 4 | . 1 2 2 2 2 3 3 3 5 8 6 2 Weapon 3 | 1 2 3 3 3 3 3 3 3 3 4 2 . Tool/Special . | . . . . . . . . . . . . . Unused Backups 29 | . 7 . . . 1 3 . 4 4 . 8 2 Power 9 | . 1 . . . . 1 . 4 1 . 2 . Propulsion 8 | . 2 . . . . 2 . . . . 3 1 Utility 8 | . 1 . . . 1 . . . 2 . 3 1 Weapon 4 | . 3 . . . . . . . 1 . . . Tool/Special . | . . . . . . . . . . . . . Average Slot Usage (%) 93 | . 85 85 85 85 95 99 99 100 99 98 83 78 Engine 2 | . 7 . . . . 4 6 6 5 2 . . Core 3 | . 6 14 14 14 9 2 . . . 2 . . Leg 23 | . 1 . . . 35 30 33 33 34 30 11 1 Wheel 4 | . 26 28 28 28 . . . . . . . . Flight 1 | . . . . . . . . . . . 7 15 Device 6 | . . . . . 8 1 . . 3 12 16 16 Storage 6 | . 14 14 14 14 9 7 6 6 5 5 3 . Processor 13 | . . . . . . 12 13 15 20 19 17 24 Protection 3 | . . . . . . 6 12 10 3 3 3 . Energy Gun 1 | . 4 . . . . . . . . . 3 6 Ballistic Gun 20 | . 23 21 28 28 26 29 26 26 22 19 6 . Peak Build Rating 133 | 6 9 9 10 11 26 37 41 49 91 114 133 126 Average Rating 59 | 6 7 9 9 10 21 32 40 43 64 96 107 107 On Entrance 35 | 6 6 9 9 10 11 26 34 41 49 85 64 110 Avg Prop Armor Cover (%) 3 | . . . . . . . . . 3 4 3 8 Naked Turns . | . . . . . . . . . . . . . Heaviest Build 97 | 10 30 30 29 29 33 42 48 50 85 87 97 47 Greatest Support 162 | 20 26 26 26 26 45 68 85 85 109 160 162 51 Greatest Overweight (x) 2 | . 1 1 1 1 . . . . . 1 2 1 Average Overweight (x) . | . . 1 1 1 . . . . . . . . Largest Inventory Capacity 20 | 8 15 15 15 15 15 15 15 15 20 20 20 5 Average Capacity 16 | 8 13 15 15 15 15 15 15 15 18 20 19 5 Most Carried 20 | 6 10 10 12 13 15 15 14 15 18 20 20 5 Average Carried 13 | 6 7 9 11 12 11 14 13 14 15 16 12 4 Final Capacity 20 | 8 15 15 15 15 15 15 15 15 20 20 5 5 Final Carried 15 | 6 9 10 12 13 15 15 14 15 15 10 5 5 Class Distribution -------------------- 26% | Scavenger-Gunner 20% | Scavenger-Skirmisher 19% | Gunner 16% | Mutant 4% | Scavenger-Tank 4% | Scavenger-Scout 3% | Assassin Dominant Class ---------------- Mutant | -10/Materials Mutant | -10/Mines Mutant | -10/Exiles Mutant | -9/Mines Scavenger-Skirmisher | -8/Materials Scavenger-Gunner | -7/Factory Gunner | -6/Factory Gunner | -6/DSF Scavenger-Gunner | -5/Factory Scavenger-Skirmisher | -4/Factory Assassin | -3/Research Scavenger-Scout | -2/Research Resources | -11 -10 -10 -10 -9 -8 -7 -6 -6 -5 -4 -3 -2 ----------- Run | Yrd Mat Min Exi Min Mat Fac Fac DSF Fac Fac Res Res Matter Collected 5289 | 200 227 80 . . 311 285 . 197 1608 1480 719 182 Remotely 901 | . . . . . . . . . . . 719 182 Salvage Created 6648 | . 502 101 . . 305 385 . 156 2562 1188 732 717 Parts 413 | . 33 5 . . 16 21 . 13 160 76 56 33 Haulers Intercepted 9 | . 2 . . . 2 2 . . 2 1 . . Recyclers Shooed 8 | . . . . . . 1 . . 5 . 1 1 Parts Field Recycled . | . . . . . . . . . . . . . Retrieved Matter . | . . . . . . . . . . . . . Parts Self-Destructed . | . . . . . . . . . . . . . Prevented . | . . . . . . . . . . . . . Parts Restored . | . . . . . . . . . . . . . Kills | -11 -10 -10 -10 -9 -8 -7 -6 -6 -5 -4 -3 -2 ------- Run | Yrd Mat Min Exi Min Mat Fac Fac DSF Fac Fac Res Res Combat Hostiles Destroyed 69 | . 8 2 . . 4 6 . 3 21 15 7 3 Melee 2 | . . . . . . . . . 1 . 1 . Guns 66 | . 8 2 . . 4 6 . 3 19 15 6 3 AOE 1 | . . . . . . . . . 1 . . . Classes Destroyed 17 | . 6 . . . 2 1 . 1 4 2 1 . Worker 7 | . 1 . . . . . . . 6 . . . Builder 9 | . . . . . . . . . 7 . 2 . Tunneler 5 | . . . . . . . . . 2 . 3 . Hauler 9 | . 2 . . . 2 2 . . 2 1 . . Recycler 8 | . 1 . . . . . . . 4 . . 3 Mechanic 2 | . . . . . . . . . . . 1 1 Operator 2 | . . . . . . . . . 1 1 . . Watcher 8 | . 2 . . . . . . . 5 . . 1 Swarmer 6 | . 3 . . . . . . . 2 1 . . Saboteur 1 | . . . . . . . . . 1 . . . Grunt 15 | . 5 2 . . 1 2 . . 2 3 . . Duelist 1 | . . . . . . . . . . 1 . . Sentry 7 | . . . . . 2 2 . . 1 . 2 . Specialist 6 | . . . . . . . . 3 2 1 . . Hunter 6 | . . . . . 1 . . . 4 1 . . Programmer 26 | . . . . . . 2 . . 9 7 5 3 Heavy 1 | . . . . . . . . . . 1 . . Best Kill Streak 7 | . 4 2 . . 2 1 . 2 7 3 2 3 Combat Bots Only 3 | . 3 2 . . 2 1 . 2 2 3 2 3 Max Kills in Single Turn 3 | . 1 1 . . 1 1 . 1 3 1 1 1 Gunslinging . | . . . . . . . . . . . . . Exploded 1 | . . . . . . . . . 1 . . . Melee 1 | . . . . . . . . . 1 . 1 . Uniques/NPCs Destroyed . | . . . . . . . . . . . . . Combat | -11 -10 -10 -10 -9 -8 -7 -6 -6 -5 -4 -3 -2 -------- Run | Yrd Mat Min Exi Min Mat Fac Fac DSF Fac Fac Res Res Hostile Shots Fired 1191 | . 46 . . 2 14 74 . 6 200 574 100 175 Missed 564 | . 11 . . 1 5 34 . 2 64 336 34 77 Hits 627 | . 35 . . 1 9 40 . 4 136 238 66 98 Melee 1 | . . . . . . . . . 1 . . . Projectile 626 | . 35 . . 1 9 40 . 4 135 238 66 98 Critical Strikes 22 | . 1 . . . . . . . 5 8 3 5 Actively Blocked 5 | . . . . . . . . . . 5 . . Part Disruptions 5 | . . . . . . . . . 1 1 1 2 Damage Taken 12236 | . 395 1 . 15 133 607 . 187 2363 4455 1813 2267 Core 2140 | . 113 . . . 16 10 . 18 95 360 141 1387 Absorbed by Shields 56 | . . . . . . . . . . . . 56 Regen/Repaired (Parts) 278 | . . . . . 87 191 . . . . . . Core Remaining (%) 86 | 100 . . . 54 97 98 . 97 90 68 89 . Volleys Fired 301 | . 48 5 . . 20 20 . 6 100 66 24 12 Largest 4 | . 2 2 . . 3 4 . 4 4 4 3 3 Hottest 222 | . 60 40 . . 65 90 . 80 121 119 217 222 Shots Fired 991 | . 95 10 . . 60 81 . 24 388 238 68 27 Gun 968 | . 94 10 . . 60 81 . 24 387 230 55 27 Cannon 13 | . . . . . . . . . . . 13 . Launcher 5 | . 1 . . . . . . . . 4 . . Special 5 | . . . . . . . . . 1 4 . . Kinetic 921 | . 69 10 . . 60 81 . 24 387 230 48 12 Thermal 54 | . 25 . . . . . . . . . 14 15 Explosive 5 | . 1 . . . . . . . . 4 . . Electromagnetic 6 | . . . . . . . . . . . 6 . Robot Hit Streak 33 | . 9 10 . . 6 21 . 10 33 11 20 6 Robot Miss Streak 6 | . 3 2 . . 3 2 . 2 6 5 2 3 Penetration Max 1 | . . . . . . . . . 1 1 . 1 Secondary Targets 8 | . 1 1 . . . . . . 2 2 1 1 Max Gunslinging Chain 1 | . 1 1 . . . . . . 1 1 1 1 Shots Hit Robots 654 | . 58 6 . . 37 65 . 17 239 137 67 28 Core Hits 266 | . 23 3 . . 15 21 . 7 109 51 22 15 Critical Kills 3 | . . . . . . 1 . . 2 . . . Critical Parts Destroyed 8 | . 1 . . . . . . . 5 . . 2 Critical Strikes 14 | . 1 . . . . 1 . . 7 . 2 3 Destroy 11 | . 1 . . . . 1 . . 7 . . 2 Impale 3 | . . . . . . . . . . . 2 1 Melee Attacks 44 | . . . . . . . . . . . 26 18 Impact . | . . . . . . . . . . . . . Slashing . | . . . . . . . . . . . . . Piercing 44 | . . . . . . . . . . . 26 18 Sneak Attacks 11 | . . . . . . . . . . . 6 5 Combat Hostiles . | . . . . . . . . . . . . . Follow-up Attacks . | . . . . . . . . . . . . . Damage Inflicted 14786 | . 682 81 . . 531 968 . 222 5071 3199 2509 1523 Guns 11874 | . 682 79 . . 512 944 . 222 4547 3064 1331 493 Cannons 318 | . . . . . . . . . . . 318 . Explosions 379 | . . . . . . . . . 266 113 . . Melee 1889 | . . . . . . . . . . . 860 1029 Ramming 326 | . . 2 . . 19 24 . . 258 22 . 1 Kinetic 11119 | . 517 79 . . 512 944 . 222 4547 3064 1143 91 Thermal 1214 | . 165 . . . . . . . 266 . 381 402 Explosive 113 | . . . . . . . . . . 113 . . Electromagnetic 125 | . . . . . . . . . . . 125 . Impact . | . . . . . . . . . . . . . Slashing . | . . . . . . . . . . . . . Piercing 1889 | . . . . . . . . . . . 860 1029 Highest Corruption 20 | . . . . . . 1 . . 8 20 16 12 Average Corruption 8 | . . . . . . 1 . . 5 13 5 6 Corruption Purged . | . . . . . . . . . . . . . Corruption Blocked . | . . . . . . . . . . . . . Effects 111 | . . . . . . 2 . . 23 56 27 3 Message Errors 28 | . . . . . . . . . 3 14 10 1 Matter Fused 21 | . . . . . . . . . 7 8 5 1 Heat Flow Errors 11 | . . . . . . 1 . . 1 4 5 . Energy Discharges 11 | . . . . . . . . . 1 8 2 . Parts Rejected 5 | . . . . . . . . . 2 2 1 . Parts Fused 1 | . . . . . . . . . . 1 . . Data Loss (minor) 10 | . . . . . . . . . 3 5 1 1 Data Loss (major) 5 | . . . . . . . . . 1 3 1 . Misfires 4 | . . . . . . 1 . . 1 2 . . Alerts 1 | . . . . . . . . . . 1 . . Misdirections 1 | . . . . . . . . . . 1 . . Weapon Failures 13 | . . . . . . . . . 4 7 2 . Overload Shots . | . . . . . . . . . . . . . Overflow Damage 720 | . . . . . . . . . 88 3 174 455 Projectiles 41 | . . . . . . . . . . . 41 . Explosions 63 | . . . . . . . . . 60 3 . . Melee 616 | . . . . . . . . . 28 . 133 455 Knockbacks 6 | . . . . . 1 . . . 3 . 2 . Impact 4 | . . . . . 1 . . . 3 . . . Kinetic 2 | . . . . . . . . . . . 2 . Secondary . | . . . . . . . . . . . . . Self-Inflicted Damage 136 | . . 1 . . . . . . 52 83 . . Shots 3 | . . . . . . . . . 1 2 . . Rammed 2 | . . 1 . . . . . . . . . 1 Targets Rammed 34 | . . 1 . . 1 6 . . 18 7 . 1 Kicked 32 | . . . . . 1 6 . . 18 7 . . Crushed . | . . . . . . . . . . . . . Highest Temperature 428 | . 145 . . . 3 120 . . 347 174 415 428 Average Temperature 65 | . 49 . . . 3 28 . . 50 42 110 189 Received Heat Transfer 1077 | . 213 . . 9 27 114 . . 63 339 141 171 Effects 1 | . . . . . . . . . . . . 1 Shutdowns 1 | . . . . . . . . . . . . 1 Siege Activations . | . . . . . . . . . . . . . Martial Activations . | . . . . . . . . . . . . . Shielding Activations . | . . . . . . . . . . . . . Robots Disrupted . | . . . . . . . . . . . . . Combat Hostiles . | . . . . . . . . . . . . . Robots Corrupted 2 | . . . . . . . . . 2 . . . Combat Hostiles . | . . . . . . . . . . . . . Parts Fried 6 | . . . . . . . . . 6 . . . Impact Corruptions 4 | . . . . . . . . . 4 . . . Robots Melted . | . . . . . . . . . . . . . Combat Hostiles . | . . . . . . . . . . . . . Parts Melted . | . . . . . . . . . . . . . Heat Transferred 1363 | . 375 . . . . . . . 100 . 444 444 Parts Sabotaged 2 | . . . . . . . . . 2 . . . Parts Stolen . | . . . . . . . . . . . . . Parts Stripped . | . . . . . . . . . . . . . Power Chain Reactions . | . . . . . . . . . . . . . Alert | -11 -10 -10 -10 -9 -8 -7 -6 -6 -5 -4 -3 -2 ------- Run | Yrd Mat Min Exi Min Mat Fac Fac DSF Fac Fac Res Res Maximum Alert Level 2 | . . . . . . . . . 2 2 . . Low Security (%) 81 | 100 100 100 . 100 100 100 100 100 85 2 100 100 Level 1 17 | . . . . . . . . . 10 96 . . Level 2 1 | . . . . . . . . . 3 1 . . Level 3 . | . . . . . . . . . . . . . Level 4 . | . . . . . . . . . . . . . Level 5 . | . . . . . . . . . . . . . High Security . | . . . . . . . . . . . . . Max Security . | . . . . . . . . . . . . . Peak Influence 441 | . 92 103 . 38 50 34 . 39 441 401 195 62 Initial 214 | . . 14 . . 12 . . 3 18 214 181 27 Average 76 | . 50 32 . 6 7 6 . 26 75 284 45 17 Influence Increases 3572 | . 300 163 . 68 181 243 5 91 850 995 379 297 Destroy 0b10 Robot/C 1580 | . 160 120 . 40 120 120 . 60 420 340 140 60 Destroy 0b10 Robot/NC 260 | . 30 . . . 10 10 . . 135 20 30 25 Destroy Leader 374 | . 28 20 . . 34 54 . 10 94 72 50 12 Allied During Kill 57 | . . 23 . 8 8 . . 6 . 12 . . Trap Triggered on 0b10 10 | . . . . . . . . . 10 . . . Successful Hack 254 | . 17 . . 5 9 58 5 . 24 8 48 80 Disable Machine 195 | . . . . . . . . . 30 150 15 . Destroy Structure 287 | . 5 . . . . 1 . . 62 168 36 15 Partial Spotted 45 | . 30 . . . . . . . . . . 15 Lose Combat Pursuer 510 | . 30 . . 15 . . . 15 75 225 60 90 Influence Decreases 3543 | . 262 148 53 35 214 243 . 61 446 1087 676 318 Entered New Map 531 | . . 24 53 . 21 . . 2 17 225 166 23 Time Decay 2160 | . 262 124 . 15 167 233 . . 319 502 388 150 Lost Part 618 | . . . . . . 10 . . 110 260 122 116 Lost Ally 205 | . . . . 20 26 . . 59 . 100 . . Purge Threat 29 | . . . . . . . . . . . . 29 Squads Dispatched 40 | . . 1 . . 2 4 . 1 9 9 5 9 Investigation 3 | . . . . . . 2 . . . . . 1 Extermination 17 | . . . . . . 2 . . 4 4 4 3 Reinforcement 18 | . . . . . 2 . . 1 5 5 1 4 Assault 1 | . . 1 . . . . . . . . . . Garrison 1 | . . . . . . . . . . . . 1 Intercept . | . . . . . . . . . . . . . Searches Triggered . | . . . . . . . . . . . . . Construction Impeded 2 | . . . . . . . . . 1 . . 1 Haulers Reinforced . | . . . . . . . . . . . . . Active Scanning Responses . | . . . . . . . . . . . . . Cargo Convoy Interrupts 1 | . . . . . . . . . 1 . . . Stealth | -11 -10 -10 -10 -9 -8 -7 -6 -6 -5 -4 -3 -2 --------- Run | Yrd Mat Min Exi Min Mat Fac Fac DSF Fac Fac Res Res Distress Signals 9 | . 1 1 . . 1 . . . 2 3 . 1 Communications Jammed . | . . . . . . . . . . . . . Distress Signals . | . . . . . . . . . . . . . Times Spotted 187 | . 13 9 . 2 8 7 . 2 41 53 21 31 Peak Tracking Total 19 | . 4 4 . 3 3 2 . 2 6 14 10 19 Tactical Retreats 14 | . 2 . . 1 . . . 1 2 4 1 3 Traps | -11 -10 -10 -10 -9 -8 -7 -6 -6 -5 -4 -3 -2 ------- Run | Yrd Mat Min Exi Min Mat Fac Fac DSF Fac Fac Res Res Traps Triggered 10 | . . . . . . 2 . 1 . 1 2 4 Indirectly . | . . . . . . . . . . . . . Trap Hack Attempts . | . . . . . . . . . . . . . Triggered . | . . . . . . . . . . . . . Disarmed . | . . . . . . . . . . . . . Reprogrammed 1 | . . . . . . . . . 1 . . . Reused 1 | . . . . . . . . . 1 . . . Traps Extracted . | . . . . . . . . . . . . . Installed . | . . . . . . . . . . . . . Triggered 1 | . . . . . . . . . 1 . . . Machines | -11 -10 -10 -10 -9 -8 -7 -6 -6 -5 -4 -3 -2 ---------- Run | Yrd Mat Min Exi Min Mat Fac Fac DSF Fac Fac Res Res Machines Disabled 13 | . . . . . . . . . 2 10 1 . Max in Single Turn 2 | . . . . . . . . . 1 2 1 . Machines Repaired . | . . . . . . . . . . . . . Machines Dismantled . | . . . . . . . . . . . . . Machines Sabotaged . | . . . . . . . . . . . . . Overloaded Fab Kills . | . . . . . . . . . . . . . Hacking | -11 -10 -10 -10 -9 -8 -7 -6 -6 -5 -4 -3 -2 --------- Run | Yrd Mat Min Exi Min Mat Fac Fac DSF Fac Fac Res Res Machines Accessed 48 | . 9 . 2 1 3 9 1 . 8 6 3 6 Terminals 29 | . 8 . . 1 2 4 1 . 5 5 1 2 Fabricators 4 | . . . . . . 2 . . 1 1 . . Repair Stations 7 | . 1 . . . 1 2 . . . . 2 1 Recycling Units . | . . . . . . . . . . . . . Scanalyzers 5 | . . . . . . 1 . . 2 . . 2 Garrison Access 1 | . . . . . . . . . . . . 1 Total Hacks 138 | . 32 . 2 4 14 26 1 . 19 14 8 18 Successful 64 | . 17 . 2 1 9 12 1 . 9 3 2 8 Failed 73 | . 14 . . 3 5 14 . . 10 11 6 10 Catastrophic 10 | . 3 . . . . 1 . . 1 3 . 2 Database Lockouts 1 | . 1 . . . . . . . . . . . Manual 52 | . 15 . 1 4 7 9 . . 6 6 3 1 Terminals 88 | . 30 . . 4 10 12 1 . 12 12 3 4 Fabricators 7 | . . . . . . 4 . . 1 2 . . Repair Stations 20 | . 2 . . . 4 7 . . . . 5 2 Recycling Units . | . . . . . . . . . . . . . Scanalyzers 18 | . . . . . . 3 . . 6 . . 9 Garrison Access 3 | . . . . . . . . . . . . 3 Terminal Hacks 23 | . 10 . 2 . 3 1 1 . 2 2 . 2 Record 2 | . . . 1 . . 1 . . . . . . Robot Analysis 3 | . 1 . . . 2 . . . . . . . Prototype ID Bank 4 | . 4 . . . . . . . . . . . Open DSF 3 | . . . . . . . 1 . 1 1 . . Scanalyzer Index 1 | . . . . . . . . . . . . 1 Unreport Threat 1 | . . . . . . . . . . . . 1 Locate Traps 1 | . 1 . . . . . . . . . . . Reprogram Traps 1 | . . . . . . . . . 1 . . . Transport Status 1 | . 1 . . . . . . . . . . . Hauler Manifests 2 | . . . . . 1 . . . . 1 . . Zone Layout 3 | . 3 . . . . . . . . . . . Proto ID Catalog 1 | . . . 1 . . . . . . . . . Fabricator Hacks 4 | . . . . . . 3 . . 1 . . . Network Status 3 | . . . . . . 2 . . 1 . . . Build 1 | . . . . . . 1 . . . . . . Repair Station Hacks 11 | . . . . . 4 4 . . . . 2 1 Scan Component 7 | . . . . . 2 2 . . . . 2 1 Repair 4 | . . . . . 2 2 . . . . . . Recycling Unit Hacks . | . . . . . . . . . . . . . Scanalyzer 9 | . . . . . . 1 . . 3 . . 5 Insert Component 3 | . . . . . . . . . 1 . . 2 Analyze 3 | . . . . . . . . . 1 . . 2 Retrieve Study 3 | . . . . . . 1 . . 1 . . 1 Garrison Access Hacks . | . . . . . . . . . . . . . Unauthorized Hacks 17 | . 7 . . 1 2 3 . . 3 1 . . Terminals 17 | . 7 . . 1 2 3 . . 3 1 . . Botnet 17 | . 7 . . 1 2 3 . . 3 1 . . Fabricators . | . . . . . . . . . . . . . Repair Stations . | . . . . . . . . . . . . . Recycling Units . | . . . . . . . . . . . . . Scanalyzers . | . . . . . . . . . . . . . Garrison Access . | . . . . . . . . . . . . . Data Cores Recovered 1 | . . . . . . . . . 1 . . . Used . | . . . . . . . . . . . . . Hacking Detections 40 | . 7 . . 1 3 7 1 . 6 6 3 6 Full Trace Events 2 | . . . . . . 1 . . . . . 1 Feedback Events 1 | . . . . . . . . . . . . 1 Corruption 1 | . . . . . . . . . . . . 1 Feedback Blocked . | . . . . . . . . . . . . . Robot Schematics Acquired . | . . . . . . . . . . . . . Robots Built 3 | . . . . . . 3 . . . . . . Authchips . | . . . . . . . . . . . . . Time 99 | . . . . . . 99 . . . . . . Total Robot Build Rating 6 | . . . . . . 6 . . . . . . Part Schematics Acquired 2 | . . . . . . . . . . . . 2 Parts Built . | . . . . . . . . . . . . . Authchips . | . . . . . . . . . . . . . Time . | . . . . . . . . . . . . . Total Part Build Rating . | . . . . . . . . . . . . . Part Studies Acquired 3 | . . . . . . 1 . . 1 . . 1 Parts Repaired 4 | . . . . . 2 2 . . . . . . Time 95 | . . . . . 52 43 . . . . . . Parts Recycled . | . . . . . . . . . . . . . Recycled Matter . | . . . . . . . . . . . . . Retrieved Matter . | . . . . . . . . . . . . . Retrieved Components . | . . . . . . . . . . . . . Parts Scanalyzed 3 | . . . . . . . . . 1 . . 2 Part Schematics Acquired 2 | . . . . . . . . . . . . 2 Parts Damaged 1 | . . . . . . . . . . . . 1 Bothacking | -11 -10 -10 -10 -9 -8 -7 -6 -6 -5 -4 -3 -2 ------------ Run | Yrd Mat Min Exi Min Mat Fac Fac DSF Fac Fac Res Res Used RIF Installer . | . . . . . . . . . . . . . Robots Hacked . | . . . . . . . . . . . . . Non-combat . | . . . . . . . . . . . . . Combat . | . . . . . . . . . . . . . Robot Hacks Applied . | . . . . . . . . . . . . . Relay Couplers Released . | . . . . . . . . . . . . . Fabnet Peak Effective % . | . . . . . . . . . . . . . Robots Rewired . | . . . . . . . . . . . . . Allies Hacked 1 | . . . . . . . . . . 1 . . Hacks Repelled . | . . . . . . . . . . . . . Allies | -11 -10 -10 -10 -9 -8 -7 -6 -6 -5 -4 -3 -2 -------- Run | Yrd Mat Min Exi Min Mat Fac Fac DSF Fac Fac Res Res Total Allies 12 | . . 4 . . . 3 . . 1 4 . . Largest Group 4 | . . 4 4 4 3 3 3 3 1 2 . . Highest-Rated Group 142 | . . 71 71 71 40 54 54 54 142 142 . . Highest-Rated Ally 142 | . . 31 31 31 16 18 18 18 142 142 . . Total Orders . | . . . . . . . . . . . . . Ally Attacks 81 | . . 21 . 8 22 . . . . 30 . . Total Damage 1884 | . . 261 . 87 208 . . . . 1328 . . Kills 12 | . . 4 . 2 2 . . . . 4 . . Allies Corrupted . | . . . . . . . . . . . . . Allies Melted . | . . . . . . . . . . . . . Field Lobotomies 4 | . . . . . . . . . 1 3 . . Intel | -11 -10 -10 -10 -9 -8 -7 -6 -6 -5 -4 -3 -2 ------- Run | Yrd Mat Min Exi Min Mat Fac Fac DSF Fac Fac Res Res Active Infowar (turns) 2309 | . . . . . . . . . . 713 1117 479 Optics 321 | . . . . . . . . . . . . 321 Terrain 1715 | . . . . . . . . . . 713 613 389 Structural 404 | . . . . . . . . . . . 29 375 Machine Analysis 1322 | . . . . . . . . . . . 854 468 Robot Analysis Total 3 | . 1 . . . 2 . . . . . . . Derelict Logs Recovered 1 | . . 1 . . . . . . . . . . Drone Launches . | . . . . . . . . . . . . . Drone Recoveries . | . . . . . . . . . . . . . Exploration | -11 -10 -10 -10 -9 -8 -7 -6 -6 -5 -4 -3 -2 ------------- Run | Yrd Mat Min Exi Min Mat Fac Fac DSF Fac Fac Res Res Turns Passed 9135 | 2 678 390 246 87 840 1333 153 120 2155 1352 1300 479 Spaces Moved 6158 | 2 495 285 218 64 560 802 116 68 1362 765 667 754 Core 40 | . . . . . . . . . . . . 40 Treads . | . . . . . . . . . . . . . Legs 4121 | 2 18 . . . 560 802 116 68 1362 765 428 . Wheels 1044 | . 477 285 218 64 . . . . . . . . Hover . | . . . . . . . . . . . . . Flight 953 | . . . . . . . . . . . 239 714 Fastest Speed 28 | 120 90 105 105 105 120 120 130 130 116 120 28 28 Average Speed 108 | 120 101 105 105 105 120 123 130 130 117 123 127 35 Slowest Speed 225 | 120 120 105 105 105 120 130 130 130 128 176 225 120 Overloaded Moves . | . . . . . . . . . . . . . Propulsion Burnouts . | . . . . . . . . . . . . . Robots Hopped 4 | . . . . . . . . . . . 3 1 Potential Cave-ins . | . . . . . . . . . . . . . Cave-ins Triggered 1 | . . . . . . . . . . 1 . . Exploration Rate (%) 33 | 2 89 48 61 17 40 22 5 51 32 19 17 27 Regions Visited 12 Branch Regions 3 Pre-discovered Areas 1 | . . . 1 . . . . . . . . . Known Exits Taken 1 | . . . . . . . 1 . . . . . Unknown Exits Taken 10 | 1 1 1 1 1 1 1 . . 1 1 1 . Scrap Searched . | . . . . . . . . . . . . . Spaces Dug 23 | . 5 . . . . . . . . . 13 5 Terrain Destroyed 134 | . 5 . . . . . . . 28 73 23 5 Melee 18 | . . . . . . . . . . . 13 5 Projectile 25 | . . . . . . . . . 9 7 9 . AOE 88 | . 5 . . . . . . . 17 66 . . Terrain Rammed . | . . . . . . . . . . . . . Walls Destroyed . | . . . . . . . . . . . . . Machines Disabled . | . . . . . . . . . . . . . Actions | -11 -10 -10 -10 -9 -8 -7 -6 -6 -5 -4 -3 -2 --------- Run | Yrd Mat Min Exi Min Mat Fac Fac DSF Fac Fac Res Res Total 7901 | 1 580 364 235 83 685 1108 118 90 1683 1038 1007 909 Wait 971 | . 12 71 16 19 77 244 . 5 149 107 215 56 Move 6138 | 1 494 284 217 63 559 801 115 67 1361 764 660 752 Hop 4 | . . . . . . . . . . . 3 1 Pick Up 86 | . 7 1 2 1 8 9 1 4 16 16 18 3 Fast Attach 44 | . 2 . . . 3 3 . . 5 4 18 9 Attach 66 | . . . . . 6 4 2 . 12 24 15 3 Detach 24 | . 2 . . . 2 1 . . . 5 9 5 Swap 83 | . 7 2 . . 4 7 . 3 12 36 9 3 Drop 69 | . 8 . . . 5 13 . 5 10 9 10 9 Fire 301 | . 48 5 . . 20 20 . 6 100 66 24 12 Melee 44 | . . . . . . . . . . . 26 18 Ram 2 | . . 1 . . . . . . . . . 1 Kick 32 | . . . . . 1 6 . . 18 7 . . Crush . | . . . . . . . . . . . . . Escape Stasis 37 | . . . . . . . . . . . . 37 Rewire . | . . . . . . . . . . . . . Trap . | . . . . . . . . . . . . . Miscellaneous . | . . . . . . . . . . . . . Route ------- -11/Scrapyard -10/Materials (discovered 3 exits: [*Mat x2] / [*Min]) -10/Mines (discovered 2 exits: [*Mat] / *Exi) -10/Exiles -9/Mines -8/Materials -7/Factory -6/Factory -6/DSF -5/Factory (discovered 2 exits: *Fac / [*Ext]) -4/Factory -3/Research -2/Research History --------- Turn | Location | Event 1 | -11/Scrapyard | Discovered new exit (range 1) 3 | -11/Scrapyard | Entered Materials 136 | -10/Materials | Discovered new exit (range 15) 213 | -10/Materials | Central database locked down 213 | -10/Materials | Discovered new exit (range 9) 307 | -10/Materials | Build established: Mutant 602 | -10/Materials | Discovered new exit (range 14) 681 | -10/Materials | Entered Mines 693 | -10/Mines | Met a Derelict bent on vengeance 756 | -10/Mines | Assembled infested the area 758 | -10/Mines | Assisted by bots powering up and referring to "LRC-V3" 834 | -10/Mines | Met a Derelict testing a Signal Generator 1017 | -10/Mines | Discovered new exit (range 8) 1025 | -10/Mines | Learned Materials trap positions 1048 | -10/Mines | Deemed a non-threat by the Exiles lab entrance 1049 | -10/Mines | Discovered new exit (range 5) 1071 | -10/Mines | Entered Exiles 1071 | -10/Exiles | Accompanied by 4 allies 1099 | -10/Exiles | Met 8R-AWN 1116 | -10/Exiles | Met EX-HEX 1148 | -10/Exiles | Met EX-BIN 1163 | -10/Exiles | Aligned with FarCom system 1164 | -10/Exiles | Given EX-Vault access code 1189 | -10/Exiles | Opened EX-Vault 1197 | -10/Exiles | Found Field Lobotomy Kit 1219 | -10/Exiles | Warned to stay clear of 0b10 Research branches 1253 | -10/Exiles | Met EX-DEC 1260 | -10/Exiles | Learned location of Zion (-7) 1292 | -10/Exiles | Discovered new exit (range 10) 1317 | -10/Exiles | Left Exiles lab with Field Lobotomy Kit 1317 | -10/Exiles | Entered Mines 1317 | -9/Mines | Accompanied by 4 allies 1361 | -9/Mines | Discovered new exit (range 6) 1404 | -9/Mines | Entered Materials 1404 | -8/Materials | Accompanied by 3 allies 1404 | -8/Materials | Evolved 4 slots: Propulsion x2, Utility x1, Weapon x1 1405 | -8/Materials | Loaded intel: 31 trap records 1706 | -8/Materials | Build established: Scavenger-Skirmisher 1788 | -8/Materials | Repaired Assault Rifle 1817 | -8/Materials | Repaired Assault Rifle 1840 | -8/Materials | Discovered new exit (range 8) 2244 | -8/Materials | Entered Factory 2244 | -7/Factory | Evolved 2 slots: Utility x1, Weapon x1 2727 | -7/Factory | Build established: Scavenger-Gunner 3118 | -7/Factory | Repaired Assault Rifle 3183 | -7/Factory | Repaired Enh. Autogun 3342 | -7/Factory | Build established: Gunner 3508 | -7/Factory | Fabricated L-31 Rogue (x3) 3551 | -7/Factory | Discovered new exit (range 16) 3577 | -7/Factory | Entered another Factory area 3577 | -6/Factory | Accompanied by 3 allies 3577 | -6/Factory | Evolved 2 slots: Propulsion x1, Utility x1 3730 | -6/Factory | Identified exit to DSF 3730 | -6/Factory | Entered DSF 3730 | -6/DSF | Accompanied by 3 allies 3760 | -6/DSF | Additional patrols routed to DSF 3794 | -6/DSF | Discovered new exit (range 11) 3807 | -6/DSF | Lost 3 allies 3850 | -6/DSF | Entered Factory 3850 | -5/Factory | Evolved 2 slots: Propulsion x1, Utility x1 4614 | -5/Factory | Cargo convoy interrupted 4982 | -5/Factory | Build established: Scavenger-Gunner 5510 | -5/Factory | Lost 4 parts (2n1u1w) 5561 | -5/Factory | Lost 3 parts (1p1n1u) 5880 | -5/Factory | Discovered new exit (range 16) 5994 | -5/Factory | Discovered new exit (range 5) 5996 | -5/Factory | Assimilated H-71 Marshal with FLK Orb 6005 | -5/Factory | Entered another Factory area 6005 | -4/Factory | Accompanied by 1 ally 6005 | -4/Factory | Evolved 2 slots: Utility x2 6250 | -4/Factory | Crushed by falling debris 6250 | -4/Factory | System corruption reached 10% 6281 | -4/Factory | Lost 4 parts (1p1n1u1w) 6636 | -4/Factory | Assimilated H-77 Assassin with FLK Orb 6682 | -4/Factory | Assimilated P-70 Sage with FLK Orb 6838 | -4/Factory | Sage 7a assimilated hostile H-77 Assassin 6975 | -4/Factory | Spotted B-86 Titan 6979 | -4/Factory | Assimilated B-86 Titan with FLK Orb 7292 | -4/Factory | Lost 6 parts (1p1u4w) 7352 | -4/Factory | Discovered new exit (range 4) 7357 | -4/Factory | Entered Research 7357 | -3/Research | Evolved 2 slots: Utility x2 7384 | -3/Research | Lost 10 parts (1p4n3u2w) 7684 | -3/Research | Lost 3 parts (1n1u1w) 7758 | -3/Research | Lost 3 parts (1n1u1w) 8565 | -3/Research | Build established: Assassin 8567 | -3/Research | System corruption reached 10% 8643 | -3/Research | Discovered new exit (range 14) 8657 | -3/Research | Entered another Research area 8657 | -2/Research | Evolved 2 slots: Utility x2 8683 | -2/Research | Lost 5 parts (1p2u2w) 8895 | -2/Research | Build established: Scavenger-Scout 8896 | -2/Research | Garrison activated, responded to threat 9100 | -2/Research | Lost 9 parts (1p4n3u1w) 9113 | -2/Research | Core integrity fell below 50% 9118 | -2/Research | System corruption reached 10% 9127 | -2/Research | Core integrity fell below 20% 9136 | -2/Research | Self-destructed Last Messages --------------- to Research Zone 6E. 09124_ Critical hit (Burn: +37). 09124_ Penetrated by Slug. 09125_ Machine Analyzer destroyed. 09125_ P-80 Master resets G-73 Enforcer, system corruption cleaned. 09128_ Triggered Stasis Trap. 09128_ A bubble of rippling energy engulfs the area. 09128_ Field strength at 94. 09129_ Field strength at 82. 09130_ Field strength at 64. 09131_ Field strength at 58. 09132_ Field strength at 52. 09133_ ALERT: Security rotation in progress. 09133_ Field strength at 28. 09133_ P-80 Master resets G-73 Enforcer, system corruption cleaned. 09134_ Field strength at 22. 09134_ ALERT: Hostiles spotted, dispatching reinforcements to Terminal R010. 09135_ Field strength at 16. 09135_ Stasis field depleted. Map ----- +----------------------------------------------------+ | "T## #? ? ????????????????????????????? | | ""## #??"""??? ?#??????????????????????????? | | #### #??"""? ?????/???????????????????????????? | | #??""" ??????????????????????????????????? | | #?????????? ???#?????????????????????????? | | ! #??????????? ????????????????????????????? | | """] #??#??????#??????????????????????????????? | | ""F] #? ?""""? ???????????????????????????????? | | ""]] # ?""S""???#??????Y??????????????????????? | | """ #??"" ""?????????????????????????????????? | | """ + ?? ???????????????????????????????????? | | # ? ?????????????????????????????????????? | | #? ?????????????????????????????????????? | | # ?? ????????????????????????????????????? | | #?? ????????????????????????????????????? | | """ #?##?+#?????????###??????????????????????? | | """ #???? ????????? #??????????????????????? | | """ #???# #?????????# #??????????????????????? | | """ #?#?# #?????????# #??????????????????????? | | """ ##??# #?????????# kw????hH???????????????? | | "" ##### ###???????# #??????????????????????? | | ! / ???????# #??????????????????????? | | g #????????# #??????????????????????? | | #????????# #??????????????????????? | | +?? ?????#p#??????????????????????? | | #??"""???#@#??????????????????????? | | #??"Y????# #??##########??????????? | | #? """?? # #??# #??????? | | # ????? ?# #??# ! #??????? | | / #? ?? ???# ##?# """"" #??????? | | ########### ###+######g#### """"" #??????? | | ?#????#???# ghgp g p # """"" #??????? | | #???#?#???# h pppgpg # #??????? | | ?#?????#??# p " #??????? | | #?????????# g # #??????? | | ???????#?#########+###### # [ #??????? | | ?????????#??#! # # #??????? | | ?????????#??# / + """ """ !#??????? | | ????????????# h ###### """T""" #??????? | | ?????#????#?# #????##############??????? | | ??????????#?# h #????????????????????????? | | ?##??#??????# """h""" #????????????????????????? | | ???????#??#?# """G""" #????????????????????????? | | ????????????#############????????????????????????? | | | | | | | | | | | | | +----------------------------------------------------+ Best States ------------- Heat Dissipation 76 Energy Generation 29 Energy Capacity 350 Matter Stores 300 Matter Capacity 300 Sight Range 20 Terrain Scan Range 20 Terrain Scan Density 210 Additional Mass Support 16 Armor Coverage 375 Weapon Cycling 20 Phase Shifting 10 Evasion (%) 90 Targeting Accuracy 8 Core Analysis 6 Armor Integrity Analysis 30 Recoil Reduction 6 Kinecelleration 40 Salvage Targeting 6 Offensive Hacking 24 Defensive Hacking 10 Item Schematics ----------------- Hyp. Railgun | -2/Research | Scanalyzed Centrium Leg | -2/Research | Scanalyzed Robot Schematics ------------------ None Fabricated ------------ L-31 Rogue | x3 | -7/Factory | Preloaded Repaired ---------- Assault Rifle | 41% | -8/Materials Assault Rifle | 72% | -8/Materials Assault Rifle | 5% | -7/Factory Enh. Autogun | 40% | -7/Factory Studied --------- Assault Rifle | -7/Factory | Hacked Titanium Leg | -5/Factory | Hacked Q-thruster | -2/Research | Hacked Alien Tech Used ----------------- None Achievements -------------- None Challenges ------------ None Game ------ Seed DynamicElectrostormReactor Manual? 0 Play Time 02:07:54 Cumulative 51.5 hours Start 2026.03.24 @ 10:02:55 End 2026.03.24 @ 12:56:23 Sessions 1 Manual Loads 0 Difficulty Rogue Special Mode None Game No. 53 Rogue 53 Adventurer 0 Explorer 0 Win Type - Total 0 Types 0/0/0/0/0/0/0/0/0/0 Lore% 46 Gallery% 36 Achievement% 33 Wizard Run 0 Options --------- Layout 0 ASCII 0 Keyboard 1 Movement Arrows Keybinds 0 Fullscreen 2 Font 18/Terminus Map View 76x50 Zoom Use 0% Tactical HUD 1 Map Filters NONE Filters NONE Steam 1 RUN: a875d664-a206-40c4-bd7c-a7488ccef4e8